[Event "Late-Titled-Tuesday-Blitz-May-14-2024"]
[Site "Chess.com"]
[Date "2024.05.14"]
[Round "2"]
[White "VictorFcQNK"]
[Black "Akhayan"]
[Result "1-0"]
[WhiteElo "2130"]
[BlackElo "2438"]
[TimeControl "180+1"]
[EndTime "14:19:58 PDT"]
[Termination "VictorFcQNK won by resignation"]

1. d4 {[%clk 0:02:50.3]} 1... Nf6 {[%clk 0:02:59.7]} 2. Nf3 {[%clk 0:02:50]}
2... g6 {[%clk 0:02:59.3]} 3. Nc3 {[%clk 0:02:48.9]} 3... d5 {[%clk 0:02:58.4]}
4. Bf4 {[%clk 0:02:42.8]} 4... Bg7 {[%clk 0:02:58.7]} 5. Nb5 {[%clk 0:02:42]}
5... Na6 {[%clk 0:02:58.2]} 6. e3 {[%clk 0:02:42]} 6... c6 {[%clk 0:02:58.1]} 7.
Na3 {[%clk 0:02:41.6]} 7... O-O {[%clk 0:02:56.3]} 8. Be2 {[%clk 0:02:40]} 8...
Nc7 {[%clk 0:02:54.1]} 9. O-O {[%clk 0:02:35.9]} 9... Ne6 {[%clk 0:02:54.2]} 10.
Be5 {[%clk 0:02:31.6]} 10... Nd7 {[%clk 0:02:53.8]} 11. Bxg7 {[%clk 0:02:31.4]}
11... Nxg7 {[%clk 0:02:54]} 12. c4 {[%clk 0:02:31]} 12... dxc4 {[%clk
0:02:50.4]} 13. Nxc4 {[%clk 0:02:29.2]} 13... b5 {[%clk 0:02:49.9]} 14. Nce5
{[%clk 0:02:28.2]} 14... Bb7 {[%clk 0:02:49.1]} 15. Nxd7 {[%clk 0:02:26.9]}
15... Qxd7 {[%clk 0:02:48.6]} 16. Ne5 {[%clk 0:02:26.9]} 16... Qe6 {[%clk
0:02:46]} 17. Bg4 {[%clk 0:02:23.9]} 17... Qd6 {[%clk 0:02:41.1]} 18. Bf3 {[%clk
0:02:22]} 18... Rac8 {[%clk 0:02:37.1]} 19. Rc1 {[%clk 0:02:21.7]} 19... Nf5
{[%clk 0:02:31.4]} 20. Qb3 {[%clk 0:02:04.8]} 20... e6 {[%clk 0:02:23.3]} 21.
Rc2 {[%clk 0:01:55.1]} 21... Rc7 {[%clk 0:02:21.7]} 22. Rfc1 {[%clk 0:01:52]}
22... Rfc8 {[%clk 0:02:22.3]} 23. g3 {[%clk 0:01:22.1]} 23... a6 {[%clk
0:02:14.1]} 24. Rc5 {[%clk 0:01:19.7]} 24... Ne7 {[%clk 0:02:04.3]} 25. Ng4
{[%clk 0:00:57.7]} 25... Kf8 {[%clk 0:01:42.5]} 26. Qd3 {[%clk 0:00:44.9]} 26...
Ng8 {[%clk 0:01:41.1]} 27. h4 {[%clk 0:00:39.1]} 27... h5 {[%clk 0:01:41.4]} 28.
Ne5 {[%clk 0:00:37.4]} 28... Ne7 {[%clk 0:01:40.6]} 29. Qe2 {[%clk 0:00:34.3]}
29... Kg7 {[%clk 0:01:30.5]} 30. Bxh5 {[%clk 0:00:27.2]} 30... Rh8 {[%clk
0:01:30.4]} 31. Bf3 {[%clk 0:00:25.8]} 31... Nf5 {[%clk 0:01:30.7]} 32. Bg2
{[%clk 0:00:24]} 32... Qe7 {[%clk 0:01:30.9]} 33. Nf3 {[%clk 0:00:22.9]} 33...
Nd6 {[%clk 0:01:29.2]} 34. Ne5 {[%clk 0:00:22.4]} 34... Ba8 {[%clk 0:01:26.5]}
35. Nxc6 {[%clk 0:00:21.2]} 35... Qf6 {[%clk 0:01:23.2]} 36. Ne5 {[%clk
0:00:18.7]} 36... Rxc5 {[%clk 0:01:18]} 37. Rxc5 {[%clk 0:00:17.9]} 37... Be4
{[%clk 0:01:15.5]} 38. Bxe4 {[%clk 0:00:16]} 38... Nxe4 {[%clk 0:01:15.8]} 39.
Rc7 {[%clk 0:00:16.2]} 39... Nd6 {[%clk 0:01:13.5]} 40. Qc2 {[%clk 0:00:14.8]}
40... g5 {[%clk 0:01:11.1]} 41. Qc6 {[%clk 0:00:13.4]} 41... Rd8 {[%clk
0:00:43.9]} 42. hxg5 {[%clk 0:00:10.9]} 42... Qxg5 {[%clk 0:00:44.3]} 43. Rd7
{[%clk 0:00:08.8]} 43... Rf8 {[%clk 0:00:28.4]} 44. Qxd6 {[%clk 0:00:08.4]}
44... Qh5 {[%clk 0:00:29.1]} 45. Qxe6 {[%clk 0:00:07.7]} 45... Qd1+ {[%clk
0:00:28.7]} 46. Kg2 {[%clk 0:00:07.5]} 46... Qh5 {[%clk 0:00:26]} 47. Qg4+
{[%clk 0:00:07.3]} 47... Qxg4 {[%clk 0:00:26.1]} 48. Nxg4 {[%clk 0:00:07.5]}
48... Kg6 {[%clk 0:00:26.8]} 49. Rd6+ {[%clk 0:00:07.5]} 49... Kg5 {[%clk
0:00:26.4]} 50. f3 {[%clk 0:00:07.2]} 50... Rc8 {[%clk 0:00:25.8]} 51. Rd5+
{[%clk 0:00:07.5]} 51... Kg6 {[%clk 0:00:25.7]} 52. Rc5 {[%clk 0:00:07.8]} 52...
Rd8 {[%clk 0:00:24.7]} 53. Ne5+ {[%clk 0:00:07.9]} 53... Kg7 {[%clk 0:00:25]}
54. Rc6 {[%clk 0:00:07.9]} 54... a5 {[%clk 0:00:24.7]} 55. Rc5 {[%clk
0:00:07.8]} 55... Rb8 {[%clk 0:00:24.9]} 56. b3 {[%clk 0:00:07.6]} 56... a4
{[%clk 0:00:24]} 57. bxa4 {[%clk 0:00:07.7]} 57... bxa4 {[%clk 0:00:24.6]} 58.
Ra5 {[%clk 0:00:07.6]} 58... Rb2+ {[%clk 0:00:24.8]} 59. Kh3 {[%clk 0:00:08]}
59... Rxa2 {[%clk 0:00:25.5]} 60. Kg4 {[%clk 0:00:08.3]} 60... Ra3 {[%clk
0:00:26]} 61. Ra7 {[%clk 0:00:08.6]} 61... Kh6 {[%clk 0:00:24.2]} 62. Nxf7+
{[%clk 0:00:07.5]} 62... Kg6 {[%clk 0:00:24.1]} 63. Kf4 {[%clk 0:00:07.6]} 63...
Ra1 {[%clk 0:00:20.8]} 64. Ne5+ {[%clk 0:00:07.8]} 64... Kf6 {[%clk 0:00:20.8]}
65. Ra6+ {[%clk 0:00:08]} 65... Ke7 {[%clk 0:00:20.6]} 66. g4 {[%clk 0:00:08.2]}
66... a3 {[%clk 0:00:19.6]} 67. Nc4 {[%clk 0:00:07.8]} 67... a2 {[%clk
0:00:19.7]} 68. Nd2 {[%clk 0:00:07.7]} 68... Kf7 {[%clk 0:00:16.5]} 69. Ne4
{[%clk 0:00:07.1]} 69... Kg7 {[%clk 0:00:15.7]} 70. g5 {[%clk 0:00:07.4]} 70...
Kf7 {[%clk 0:00:15.7]} 71. Kf5 {[%clk 0:00:07.5]} 71... Rf1 {[%clk 0:00:14.6]}
72. Ra7+ {[%clk 0:00:07.4]} 72... Kf8 {[%clk 0:00:13.7]} 73. Rxa2 {[%clk
0:00:07.4]} 73... Rxf3+ {[%clk 0:00:14.1]} 74. Ke5 {[%clk 0:00:06.9]} 74... Rxe3
{[%clk 0:00:14.5]} 75. g6 {[%clk 0:00:06.8]} 75... Kg7 {[%clk 0:00:14.2]} 76.
Ra6 {[%clk 0:00:06.2]} 76... Rf3 {[%clk 0:00:13.8]} 77. Nd6 {[%clk 0:00:05.9]}
77... Kxg6 {[%clk 0:00:13.1]} 78. Ne4+ {[%clk 0:00:06]} 78... Kf7 {[%clk
0:00:12.6]} 79. Ra7+ {[%clk 0:00:06]} 79... Ke8 {[%clk 0:00:12.5]} 80. d5 {[%clk
0:00:06.3]} 80... Rh3 {[%clk 0:00:11.8]} 81. Kd6 {[%clk 0:00:06]} 81... Rh5
{[%clk 0:00:12.5]} 82. Nf6+ {[%clk 0:00:05.3]} 82... Kd8 {[%clk 0:00:11.3]} 83.
Nxh5 {[%clk 0:00:05.4]} 1-0

[Event "Late-Titled-Tuesday-Blitz-May-14-2024"]
[Site "Chess.com"]
[Date "2024.05.14"]
[Round "2"]
[White "MyDream003"]
[Black "Russian_berezka"]
[Result "0-1"]
[WhiteElo "2842"]
[BlackElo "2601"]
[TimeControl "180+1"]
[EndTime "14:19:59 PDT"]
[Termination "Russian_berezka won on time"]

1. Nf3 {[%clk 0:02:59.5]} 1... c5 {[%clk 0:02:57.4]} 2. b3 {[%clk 0:02:59.8]}
2... Nf6 {[%clk 0:02:54.2]} 3. Bb2 {[%clk 0:02:59.9]} 3... d6 {[%clk 0:02:54.6]}
4. g3 {[%clk 0:02:58.6]} 4... g6 {[%clk 0:02:54.8]} 5. Bg2 {[%clk 0:02:58.7]}
5... Bg7 {[%clk 0:02:55.5]} 6. O-O {[%clk 0:02:59.2]} 6... O-O {[%clk
0:02:56.2]} 7. c4 {[%clk 0:02:59.2]} 7... e5 {[%clk 0:02:48.4]} 8. Nc3 {[%clk
0:02:58.7]} 8... Nc6 {[%clk 0:02:46.2]} 9. d3 {[%clk 0:02:58.1]} 9... Be6 {[%clk
0:02:42.7]} 10. Ng5 {[%clk 0:02:55.8]} 10... Bd7 {[%clk 0:02:38.3]} 11. Nge4
{[%clk 0:02:55.3]} 11... Nxe4 {[%clk 0:02:36.7]} 12. dxe4 {[%clk 0:02:53.9]}
12... Be6 {[%clk 0:02:32]} 13. e3 {[%clk 0:02:52.6]} 13... Qe7 {[%clk
0:02:29.6]} 14. Qd2 {[%clk 0:02:49.9]} 14... h6 {[%clk 0:02:19.6]} 15. Rad1
{[%clk 0:02:49.5]} 15... Rad8 {[%clk 0:02:20.1]} 16. h3 {[%clk 0:02:49.1]} 16...
Kh7 {[%clk 0:02:20.1]} 17. Kh2 {[%clk 0:02:49]} 17... Rd7 {[%clk 0:02:20.6]} 18.
Qe2 {[%clk 0:02:45.8]} 18... f6 {[%clk 0:02:20.2]} 19. Rd2 {[%clk 0:02:40.4]}
19... Rfd8 {[%clk 0:02:19.5]} 20. Rfd1 {[%clk 0:02:34.5]} 20... Qf7 {[%clk
0:02:16.1]} 21. Nb5 {[%clk 0:02:23.8]} 21... Qf8 {[%clk 0:02:12.1]} 22. f4
{[%clk 0:02:15.7]} 22... g5 {[%clk 0:02:07.4]} 23. f5 {[%clk 0:02:06.7]} 23...
Bf7 {[%clk 0:02:03.9]} 24. Bf3 {[%clk 0:02:03.4]} 24... Qe7 {[%clk 0:01:33.4]}
25. Bh5 {[%clk 0:02:02.4]} 25... Bxh5 {[%clk 0:01:20.2]} 26. Qxh5 {[%clk
0:02:03.3]} 26... Bf8 {[%clk 0:01:14.4]} 27. Nc3 {[%clk 0:01:54]} 27... Qf7
{[%clk 0:01:12.1]} 28. Qf3 {[%clk 0:01:53.4]} 28... h5 {[%clk 0:01:12.6]} 29.
Nd5 {[%clk 0:01:50.2]} 29... Kh6 {[%clk 0:01:09]} 30. Kg2 {[%clk 0:01:49]} 30...
Ne7 {[%clk 0:01:06.1]} 31. Nc3 {[%clk 0:01:47.9]} 31... Nc6 {[%clk 0:01:06.5]}
32. Ba3 {[%clk 0:01:48.3]} 32... b6 {[%clk 0:01:03.3]} 33. Rd3 {[%clk
0:01:47.7]} 33... a6 {[%clk 0:00:52.7]} 34. R1d2 {[%clk 0:01:47.1]} 34... Rb7
{[%clk 0:00:52]} 35. Qd1 {[%clk 0:01:47]} 35... Rdb8 {[%clk 0:00:50]} 36. Rxd6
{[%clk 0:01:15]} 36... Bxd6 {[%clk 0:00:50.9]} 37. Rxd6 {[%clk 0:01:15.5]} 37...
Ne7 {[%clk 0:00:46.4]} 38. Re6 {[%clk 0:01:15.1]} 38... Kg7 {[%clk 0:00:39.9]}
39. Bb2 {[%clk 0:01:12.9]} 39... Qe8 {[%clk 0:00:37.2]} 40. Nd5 {[%clk
0:01:06.7]} 40... Nxd5 {[%clk 0:00:37.6]} 41. exd5 {[%clk 0:00:55.3]} 41... Re7
{[%clk 0:00:35.9]} 42. e4 {[%clk 0:00:19.4]} 42... b5 {[%clk 0:00:32.8]} 43. Bc3
{[%clk 0:00:17.4]} 43... bxc4 {[%clk 0:00:32]} 44. bxc4 {[%clk 0:00:18.3]} 44...
Qf7 {[%clk 0:00:23.3]} 45. Qa4 {[%clk 0:00:14.8]} 45... Rb1 {[%clk 0:00:15.4]}
46. Qc2 {[%clk 0:00:14.5]} 46... Reb7 {[%clk 0:00:13]} 47. Rxa6 {[%clk
0:00:10.6]} 47... h4 {[%clk 0:00:09.4]} 48. g4 {[%clk 0:00:10.6]} 48... Qd7
{[%clk 0:00:07.9]} 49. Rc6 {[%clk 0:00:07.5]} 49... Qe8 {[%clk 0:00:06.1]} 50.
Rxc5 {[%clk 0:00:07]} 50... Qe7 {[%clk 0:00:06.6]} 51. Ra5 {[%clk 0:00:04.1]}
51... Qc7 {[%clk 0:00:05.3]} 52. c5 {[%clk 0:00:03.7]} 52... Qxa5 {[%clk
0:00:05.4]} 53. Bxa5 {[%clk 0:00:04]} 53... R1b2 {[%clk 0:00:06.3]} 54. Qxb2
{[%clk 0:00:04.5]} 54... Rxb2+ {[%clk 0:00:07.2]} 55. Kf3 {[%clk 0:00:05.2]}
55... Rxa2 {[%clk 0:00:07.7]} 56. c6 {[%clk 0:00:05.4]} 56... Rc2 {[%clk
0:00:03.3]} 57. c7 {[%clk 0:00:05.6]} 57... Kf7 {[%clk 0:00:03.7]} 58. Ke3
{[%clk 0:00:04.7]} 58... Ke8 {[%clk 0:00:03.1]} 59. Kd3 {[%clk 0:00:04.8]} 59...
Rc5 {[%clk 0:00:02.2]} 60. Bb6 {[%clk 0:00:04.6]} 60... Rc1 {[%clk 0:00:02]} 61.
Ba5 {[%clk 0:00:04.8]} 61... Kd7 {[%clk 0:00:02.6]} 62. Kd2 {[%clk 0:00:04.7]}
62... Rh1 {[%clk 0:00:03]} 63. d6 {[%clk 0:00:03.1]} 63... Rxh3 {[%clk
0:00:03.4]} 64. Bc3 {[%clk 0:00:03.3]} 64... Rf3 {[%clk 0:00:03]} 65. Ba5 {[%clk
0:00:02.1]} 65... h3 {[%clk 0:00:03.2]} 0-1

[Event "Late-Titled-Tuesday-Blitz-May-14-2024"]
[Site "Chess.com"]
[Date "2024.05.14"]
[Round "3"]
[White "cukricek"]
[Black "Bykov_Egor"]
[Result "0-1"]
[WhiteElo "2447"]
[BlackElo "2637"]
[TimeControl "180+1"]
[EndTime "14:24:45 PDT"]
[Termination "Bykov_Egor won by resignation"]

1. g3 {[%clk 0:03:00.9]} 1... Nf6 {[%clk 0:02:59.4]} 2. Bg2 {[%clk 0:03:01]}
2... g6 {[%clk 0:02:59.9]} 3. Nf3 {[%clk 0:03:01.3]} 3... Bg7 {[%clk 0:03:00.4]}
4. O-O {[%clk 0:03:02.2]} 4... O-O {[%clk 0:03:00.5]} 5. c4 {[%clk 0:03:02.8]}
5... d6 {[%clk 0:02:59.7]} 6. Nc3 {[%clk 0:03:03.2]} 6... Nc6 {[%clk 0:02:57.9]}
7. Rb1 {[%clk 0:03:02.9]} 7... e5 {[%clk 0:02:50.5]} 8. b4 {[%clk 0:03:02]} 8...
Be6 {[%clk 0:02:10.8]} 9. d3 {[%clk 0:02:56.6]} 9... h6 {[%clk 0:02:06.9]} 10.
b5 {[%clk 0:02:55.2]} 10... Ne7 {[%clk 0:02:06.4]} 11. a4 {[%clk 0:02:53.8]}
11... Qd7 {[%clk 0:01:54.4]} 12. a5 {[%clk 0:02:53.8]} 12... Bh3 {[%clk
0:01:51.6]} 13. Ne1 {[%clk 0:02:53.9]} 13... Bxg2 {[%clk 0:01:47.3]} 14. Kxg2
{[%clk 0:02:53.7]} 14... d5 {[%clk 0:01:42]} 15. Nc2 {[%clk 0:02:51.5]} 15...
Rad8 {[%clk 0:01:39.3]} 16. Ba3 {[%clk 0:02:46.8]} 16... dxc4 {[%clk 0:01:35.1]}
17. dxc4 {[%clk 0:02:46.3]} 17... Qe6 {[%clk 0:01:35.4]} 18. Bxe7 {[%clk
0:02:43.1]} 18... Rxd1 {[%clk 0:01:31.9]} 0-1

[Event "Late-Titled-Tuesday-Blitz-May-14-2024"]
[Site "Chess.com"]
[Date "2024.05.14"]
[Round "3"]
[White "SoCalJuniorChess"]
[Black "yaguigor"]
[Result "0-1"]
[WhiteElo "2231"]
[BlackElo "2557"]
[TimeControl "180+1"]
[EndTime "14:25:03 PDT"]
[Termination "yaguigor won by resignation"]

1. d4 {[%clk 0:03:00.9]} 1... d5 {[%clk 0:02:56.6]} 2. Nc3 {[%clk 0:03:01]} 2...
Nf6 {[%clk 0:02:55.9]} 3. Bf4 {[%clk 0:03:00.8]} 3... a6 {[%clk 0:02:55]} 4. Nf3
{[%clk 0:02:58.8]} 4... b5 {[%clk 0:02:54.3]} 5. a4 {[%clk 0:02:50.5]} 5... b4
{[%clk 0:02:53.7]} 6. Nb1 {[%clk 0:02:50.4]} 6... e6 {[%clk 0:02:52.3]} 7. b3
{[%clk 0:02:50.6]} 7... c5 {[%clk 0:02:51.2]} 8. dxc5 {[%clk 0:02:49.4]} 8...
Bxc5 {[%clk 0:02:50.4]} 9. e3 {[%clk 0:02:49.7]} 9... Nbd7 {[%clk 0:02:44.5]}
10. Nbd2 {[%clk 0:02:48.6]} 10... Bb7 {[%clk 0:02:39.8]} 11. Bd3 {[%clk
0:02:48.5]} 11... O-O {[%clk 0:02:26.5]} 12. Qe2 {[%clk 0:02:48.3]} 12... Ne4
{[%clk 0:02:25.2]} 13. Bxe4 {[%clk 0:02:40.1]} 13... dxe4 {[%clk 0:02:24.3]} 14.
Ng5 {[%clk 0:02:40.4]} 14... e5 {[%clk 0:02:17.4]} 15. Qh5 {[%clk 0:02:29.6]}
15... Nf6 {[%clk 0:02:09.7]} 16. Qh4 {[%clk 0:02:10.2]} 16... exf4 {[%clk
0:02:07.7]} 17. exf4 {[%clk 0:02:08.2]} 17... e3 {[%clk 0:02:04.5]} 18. fxe3
{[%clk 0:02:06.6]} 18... Bxe3 {[%clk 0:02:03.1]} 19. O-O-O {[%clk 0:02:06.9]}
19... Qd4 {[%clk 0:02:00.3]} 20. Kb1 {[%clk 0:02:03.6]} 20... Bxd2 {[%clk
0:01:56.6]} 0-1

[Event "Late-Titled-Tuesday-Blitz-May-14-2024"]
[Site "Chess.com"]
[Date "2024.05.14"]
[Round "3"]
[White "Dolphin_2010"]
[Black "David_ATM"]
[Result "1-0"]
[WhiteElo "2640"]
[BlackElo "2450"]
[TimeControl "180+1"]
[EndTime "14:25:25 PDT"]
[Termination "Dolphin_2010 won by resignation"]

1. d4 {[%clk 0:02:54.3]} 1... d5 {[%clk 0:03:00.2]} 2. c4 {[%clk 0:02:52.9]}
2... c6 {[%clk 0:03:01.1]} 3. Nc3 {[%clk 0:02:53]} 3... Nf6 {[%clk 0:03:01.7]}
4. cxd5 {[%clk 0:02:51]} 4... Nxd5 {[%clk 0:03:01.3]} 5. e4 {[%clk 0:02:50.3]}
5... Nxc3 {[%clk 0:03:01.1]} 6. bxc3 {[%clk 0:02:51.2]} 6... e5 {[%clk
0:03:01.7]} 7. Nf3 {[%clk 0:02:51.4]} 7... exd4 {[%clk 0:03:01.7]} 8. cxd4
{[%clk 0:02:52.3]} 8... Bg4 {[%clk 0:02:58.8]} 9. Be2 {[%clk 0:02:48]} 9... Bb4+
{[%clk 0:02:58.2]} 10. Bd2 {[%clk 0:02:47.9]} 10... Bxf3 {[%clk 0:02:48.4]} 11.
Bxb4 {[%clk 0:02:43]} 11... Bxg2 {[%clk 0:02:40.1]} 12. Rg1 {[%clk 0:02:41.6]}
12... Bxe4 {[%clk 0:02:40.8]} 13. Rxg7 {[%clk 0:02:40.5]} 13... Bg6 {[%clk
0:02:37.4]} 14. Bg4 {[%clk 0:02:07]} 14... Qf6 {[%clk 0:02:35.3]} 15. Qe2+
{[%clk 0:02:03.8]} 15... Kd8 {[%clk 0:02:35.7]} 16. Qe5 {[%clk 0:02:04.4]} 16...
Re8 {[%clk 0:02:32.4]} 17. Qxe8+ {[%clk 0:02:04.4]} 17... Kc7 {[%clk 0:02:03.3]}
18. Qc8+ {[%clk 0:01:44.8]} 18... Kb6 {[%clk 0:02:02.9]} 19. Bc5+ {[%clk
0:01:44.7]} 19... Ka6 {[%clk 0:02:02.8]} 20. Be2+ {[%clk 0:01:43.8]} 20... Ka5
{[%clk 0:02:03.2]} 21. Qxb7 {[%clk 0:01:43]} 1-0

[Event "Late-Titled-Tuesday-Blitz-May-14-2024"]
[Site "Chess.com"]
[Date "2024.05.14"]
[Round "3"]
[White "keepitcoming"]
[Black "StoreySniper"]
[Result "0-1"]
[WhiteElo "2206"]
[BlackElo "2441"]
[TimeControl "180+1"]
[EndTime "14:25:42 PDT"]
[Termination "StoreySniper won by resignation"]

1. d4 {[%clk 0:03:00.9]} 1... g6 {[%clk 0:02:54.3]} 2. c4 {[%clk 0:03:00.2]}
2... Bg7 {[%clk 0:02:54]} 3. Nc3 {[%clk 0:03:00.7]} 3... c5 {[%clk 0:02:53.7]}
4. d5 {[%clk 0:03:00.6]} 4... d6 {[%clk 0:02:53.1]} 5. e4 {[%clk 0:02:54.9]}
5... Nf6 {[%clk 0:02:53]} 6. Bd3 {[%clk 0:02:55.1]} 6... O-O {[%clk 0:02:52.8]}
7. Nge2 {[%clk 0:02:55.2]} 7... e6 {[%clk 0:02:53.2]} 8. f3 {[%clk 0:02:54.8]}
8... exd5 {[%clk 0:02:52.9]} 9. cxd5 {[%clk 0:02:55.7]} 9... b6 {[%clk 0:02:49]}
10. O-O {[%clk 0:02:54.7]} 10... Ba6 {[%clk 0:02:49.2]} 11. Bg5 {[%clk
0:02:52.1]} 11... Bxd3 {[%clk 0:02:47.3]} 12. Qxd3 {[%clk 0:02:53]} 12... Nbd7
{[%clk 0:02:47.2]} 13. Ng3 {[%clk 0:02:52.2]} 13... a6 {[%clk 0:02:44.8]} 14. a4
{[%clk 0:02:50.7]} 14... Qc7 {[%clk 0:02:43.6]} 15. Rac1 {[%clk 0:02:47.3]}
15... Rfb8 {[%clk 0:02:33.1]} 16. b4 {[%clk 0:02:43.1]} 16... c4 {[%clk
0:02:21.8]} 17. Qd2 {[%clk 0:02:42.3]} 17... b5 {[%clk 0:02:19.8]} 18. axb5
{[%clk 0:02:38.3]} 18... axb5 {[%clk 0:02:19.9]} 19. Nge2 {[%clk 0:02:27.1]}
19... Ne5 {[%clk 0:02:16.1]} 20. Nd4 {[%clk 0:02:25.5]} 20... Nd3 {[%clk
0:02:15.7]} 21. Ra1 {[%clk 0:02:18.7]} 21... Nxd5 {[%clk 0:02:05.6]} 22. Ndxb5
{[%clk 0:02:01.6]} 22... Qb6+ {[%clk 0:01:56.5]} 23. Kh1 {[%clk 0:02:00]} 23...
Rxa1 {[%clk 0:01:51.5]} 24. Rxa1 {[%clk 0:01:57.2]} 24... Nf2+ {[%clk
0:01:49.4]} 25. Kg1 {[%clk 0:01:53.3]} 25... Nxe4+ {[%clk 0:01:45.8]} 0-1

[Event "Late-Titled-Tuesday-Blitz-May-14-2024"]
[Site "Chess.com"]
[Date "2024.05.14"]
[Round "3"]
[White "nabukatnezarr"]
[Black "geordie_derraugh"]
[Result "1-0"]
[WhiteElo "2627"]
[BlackElo "2432"]
[TimeControl "180+1"]
[EndTime "14:26:02 PDT"]
[Termination "nabukatnezarr won by resignation"]

1. b3 {[%clk 0:03:00.9]} 1... c5 {[%clk 0:02:53.7]} 2. Bb2 {[%clk 0:03:00.7]}
2... Nc6 {[%clk 0:02:53.5]} 3. e3 {[%clk 0:03:00]} 3... e5 {[%clk 0:02:53.1]} 4.
Bb5 {[%clk 0:02:59.2]} 4... d6 {[%clk 0:02:52.8]} 5. Nf3 {[%clk 0:02:55.5]} 5...
Bd7 {[%clk 0:02:51.8]} 6. O-O {[%clk 0:02:54.5]} 6... g6 {[%clk 0:02:48.2]} 7.
d4 {[%clk 0:02:52.8]} 7... e4 {[%clk 0:02:43.6]} 8. Nfd2 {[%clk 0:02:50.7]} 8...
cxd4 {[%clk 0:02:33.6]} 9. Nxe4 {[%clk 0:02:47]} 9... d5 {[%clk 0:02:17.8]} 10.
Bxc6 {[%clk 0:02:12.1]} 10... bxc6 {[%clk 0:02:15.1]} 11. Qxd4 {[%clk
0:02:03.9]} 11... f6 {[%clk 0:02:07.4]} 12. Nxf6+ {[%clk 0:02:01.7]} 12... Nxf6
{[%clk 0:02:05.8]} 13. Qxf6 {[%clk 0:02:02.6]} 13... Qxf6 {[%clk 0:02:05.8]} 14.
Bxf6 {[%clk 0:02:03.5]} 14... Rg8 {[%clk 0:02:06.3]} 15. Nd2 {[%clk 0:01:52.6]}
15... Kf7 {[%clk 0:02:05.7]} 16. Bb2 {[%clk 0:01:51.7]} 16... Bb4 {[%clk
0:02:02.5]} 17. Nf3 {[%clk 0:01:51.5]} 17... Be8 {[%clk 0:01:59.8]} 18. Ng5+
{[%clk 0:01:45.8]} 18... Ke7 {[%clk 0:02:00.2]} 19. Nxh7 {[%clk 0:01:45.8]}
19... g5 {[%clk 0:01:59.7]} 20. Nf6 {[%clk 0:01:42.7]} 20... Rf8 {[%clk
0:01:58.8]} 21. Nxe8 {[%clk 0:01:39.6]} 21... Raxe8 {[%clk 0:01:59.7]} 22. Rad1
{[%clk 0:01:35]} 22... Ke6 {[%clk 0:01:59.8]} 23. Rd4 {[%clk 0:01:32.3]} 23...
Bc5 {[%clk 0:01:58.6]} 24. Rg4 {[%clk 0:01:32.6]} 24... Be7 {[%clk 0:01:58.3]}
25. e4 {[%clk 0:01:29.7]} 25... dxe4 {[%clk 0:01:43.8]} 26. Rxe4+ {[%clk
0:01:30.6]} 1-0

[Event "Late-Titled-Tuesday-Blitz-May-14-2024"]
[Site "Chess.com"]
[Date "2024.05.14"]
[Round "3"]
[White "crushernt"]
[Black "patzer-reloaded"]
[Result "0-1"]
[WhiteElo "2066"]
[BlackElo "2386"]
[TimeControl "180+1"]
[EndTime "14:26:03 PDT"]
[Termination "patzer-reloaded won by resignation"]

1. e4 {[%clk 0:03:00.9]} 1... d6 {[%clk 0:03:00.1]} 2. d4 {[%clk 0:03:00]} 2...
Nf6 {[%clk 0:03:00.2]} 3. Nc3 {[%clk 0:02:59.5]} 3... g6 {[%clk 0:03:00.5]} 4.
Nf3 {[%clk 0:02:59]} 4... Bg7 {[%clk 0:03:00.9]} 5. Be2 {[%clk 0:02:59.4]} 5...
O-O {[%clk 0:03:01.1]} 6. O-O {[%clk 0:03:00]} 6... Bg4 {[%clk 0:03:01.2]} 7. h3
{[%clk 0:02:59]} 7... Bxf3 {[%clk 0:03:00.3]} 8. Bxf3 {[%clk 0:02:58.7]} 8... e5
{[%clk 0:03:01]} 9. Re1 {[%clk 0:02:54.8]} 9... Nc6 {[%clk 0:03:00.1]} 10. d5
{[%clk 0:02:51.9]} 10... Ne7 {[%clk 0:02:59.6]} 11. Be3 {[%clk 0:02:52.4]} 11...
Nd7 {[%clk 0:02:59]} 12. Bg5 {[%clk 0:02:48.5]} 12... f6 {[%clk 0:02:33.8]} 13.
Bh4 {[%clk 0:02:42.2]} 13... h5 {[%clk 0:02:28.6]} 14. Qd2 {[%clk 0:02:24.2]}
14... Kh7 {[%clk 0:02:07.5]} 15. Ne2 {[%clk 0:02:18.2]} 15... Bh6 {[%clk
0:02:05.9]} 16. Qd3 {[%clk 0:02:14.4]} 16... Bg5 {[%clk 0:02:00.7]} 17. Bg3
{[%clk 0:02:00]} 17... f5 {[%clk 0:01:52.7]} 18. exf5 {[%clk 0:01:50.9]} 18...
Nxf5 {[%clk 0:01:51.9]} 19. Be4 {[%clk 0:01:42.3]} 19... Nc5 {[%clk 0:01:51]}
20. Qc4 {[%clk 0:01:20.3]} 20... b5 {[%clk 0:01:49.5]} 21. Qb4 {[%clk
0:01:13.4]} 21... a5 {[%clk 0:01:49]} 0-1

[Event "Late-Titled-Tuesday-Blitz-May-14-2024"]
[Site "Chess.com"]
[Date "2024.05.14"]
[Round "3"]
[White "Hikaru"]
[Black "Timurist"]
[Result "1-0"]
[WhiteElo "3220"]
[BlackElo "2339"]
[TimeControl "180+1"]
[EndTime "14:26:08 PDT"]
[Termination "Hikaru won by resignation"]

1. h4 {[%clk 0:03:00.9]} 1... a5 {[%clk 0:02:58.1]} 2. h5 {[%clk 0:03:00]} 2...
Ra6 {[%clk 0:02:57.5]} 3. e4 {[%clk 0:03:00.1]} 3... Rh6 {[%clk 0:02:57.7]} 4.
d4 {[%clk 0:03:00.2]} 4... Rb6 {[%clk 0:02:55.9]} 5. c4 {[%clk 0:02:57.6]} 5...
d6 {[%clk 0:02:55.8]} 6. Nc3 {[%clk 0:02:57]} 6... Nf6 {[%clk 0:02:46.8]} 7. b3
{[%clk 0:02:55]} 7... h6 {[%clk 0:02:33.6]} 8. f3 {[%clk 0:02:52.6]} 8... e6
{[%clk 0:02:30.2]} 9. Be3 {[%clk 0:02:52.4]} 9... c5 {[%clk 0:02:30.2]} 10. dxc5
{[%clk 0:02:47.4]} 10... dxc5 {[%clk 0:02:31.1]} 11. Qxd8+ {[%clk 0:02:47.5]}
11... Kxd8 {[%clk 0:02:30.7]} 12. e5 {[%clk 0:02:48.4]} 12... Nfd7 {[%clk
0:02:28.5]} 13. f4 {[%clk 0:02:49]} 13... Nc6 {[%clk 0:02:22.3]} 14. Nf3 {[%clk
0:02:49.4]} 14... Nb4 {[%clk 0:02:20.4]} 15. O-O-O {[%clk 0:02:49.1]} 15... Kc7
{[%clk 0:02:16.6]} 16. a3 {[%clk 0:02:47.3]} 16... Nc6 {[%clk 0:02:13.6]} 17.
Nb5+ {[%clk 0:02:47.8]} 17... Rxb5 {[%clk 0:02:14.2]} 18. cxb5 {[%clk
0:02:47.7]} 18... Na7 {[%clk 0:02:15]} 19. a4 {[%clk 0:02:47.2]} 19... b6 {[%clk
0:02:14.1]} 20. f5 {[%clk 0:02:47.3]} 20... Bb7 {[%clk 0:02:13]} 21. Bf4 {[%clk
0:02:47.6]} 21... Nc8 {[%clk 0:02:12]} 22. Bc4 {[%clk 0:02:45.9]} 22... Be4
{[%clk 0:01:55.7]} 23. fxe6 {[%clk 0:02:45.7]} 23... fxe6 {[%clk 0:01:33.1]} 24.
Bxe6 {[%clk 0:02:46.6]} 24... Nb8 {[%clk 0:01:26.5]} 25. Rhe1 {[%clk 0:02:45.8]}
25... Bxf3 {[%clk 0:01:18.7]} 26. gxf3 {[%clk 0:02:46.7]} 26... Be7 {[%clk
0:01:19.6]} 27. Bf7 {[%clk 0:02:44.9]} 27... Bg5 {[%clk 0:01:10.7]} 28. Bxg5
{[%clk 0:02:44.2]} 28... hxg5 {[%clk 0:01:10.6]} 29. e6 {[%clk 0:02:45.1]} 29...
Ne7 {[%clk 0:01:10.7]} 30. Re5 {[%clk 0:02:45.2]} 1-0